fUST/lending_fUST_20241013
["ID","MTS","AMOUNT","RATE_DAILY","PERIOD"]
[340192584,1728810638851,-1534.765747,0.00027146,2]
[340192586,1728810638862,-300.0,0.00027166,2]
[340192588,1728810638871,-300.0,0.00027166,2]
[340192590,1728810638882,-500.0,0.00027167,2]
[340192592,1728810638892,-500.0,0.00027167,2]
[340192594,1728810638901,-500.0,0.00027167,2]
[340192596,1728810638911,-501.51851618,0.00027167,2]
[340192598,1728810638921,-151.0,0.0002717,2]
[340192600,1728810638932,-161.68279538,0.0002724,2]
[340192602,1728810638941,-386.437009,0.00027397,2]
[340192604,1728810638951,-166.666666,0.00027509,2]
[340192606,1728810638961,-500.5725392,0.0002792,5]
[340192608,1728810638970,-876.91819195,0.0002792,5]
[340192610,1728810638980,-756.76058746,0.00028096,2]
[340192612,1728810638990,-1000.0,0.00028148,5]
[340192614,1728810639000,-1483.82,0.00028186,10]
[340192617,1728810639011,-3273.88,0.00028187,3]
[340192619,1728810639021,-1636.94,0.00028187,3]
[340192621,1728810639031,-818.47,0.00028187,3]
[340192623,1728810639041,-409.24,0.00028187,3]
[340192625,1728810639052,-461.89802741,0.00028196,2]
[340192627,1728810639062,-500.0,0.00028196,2]
[340192629,1728810639073,-280.06248725,0.00028196,2]
[340192632,1728810639083,-500.0,0.00028196,2]
[340192634,1728810639093,-68933.6749618,0.00028197,4]
[340192636,1728810639105,-22827.5517161,0.00028197,4]
[340192638,1728810639115,-166.666666,0.00028202,2]
[340192640,1728810639125,-150.0,0.00028463,2]
[340192642,1728810639136,-1000.0,0.00028537,5]
[340192645,1728810639147,-898.88018619,0.00028537,5]
[340192647,1728810639157,-1004.81501226,0.00028537,5]
[340192649,1728810639167,-233.81700003,0.00028694,2]
[340192651,1728810639181,-205.75884697,0.00028694,2]
[340192653,1728810639191,-327.43013588,0.00028694,2]
[340192655,1728810639201,-459.22708721,0.00028694,2]
[340192657,1728810639211,-271.99054453,0.00028694,2]
[340192658,1728810639220,-756.76058746,0.00028695,2]
[340192659,1728810639232,-258.03870099,0.00028773,5]
[340192660,1728810639243,-500.0,0.00028773,5]
[340192661,1728810639255,-500.0,0.00028773,5]
[340192662,1728810639266,-501.63086104,0.00028773,5]
[340192663,1728810639276,-500.0,0.00028773,5]
[340192664,1728810639287,-500.0,0.00028773,5]
[340192665,1728810639297,-500.0,0.00028773,5]
[340192666,1728810639307,-193.66046304,0.00028873,2]
[340192667,1728810639318,-166.666666,0.00028896,2]
[340192668,1728810639327,-500.0,0.00028973,5]
[340192669,1728810639338,-34466.8374809,0.0002899,4]
[340192670,1728810639347,-11413.7758581,0.0002899,4]
[340192671,1728810639357,-500.0,0.00029,2]
[340192672,1728810639368,-500.0,0.00029,2]
[340192673,1728810639448,-500.0,0.00029,2]
[340192674,1728810639462,-680.36349694,0.00029,2]
[340192675,1728810639471,-500.0,0.00029,2]
[340192676,1728810639481,-500.0,0.00029,2]
[340192677,1728810639494,-500.0,0.00029,2]
[340192678,1728810639504,-667.56163429,0.00029,2]
[340192679,1728810639514,-500.0,0.00029,2]
[340192680,1728810639523,-500.0,0.00029,2]
[340192681,1728810639533,-500.0,0.00029,2]
[340192682,1728810639542,-500.0,0.00029,2]
[340192683,1728810639551,-500.0,0.00029,2]
[340192684,1728810639561,-500.0,0.00029,2]
[340192685,1728810639570,-500.0,0.00029,2]
[340192686,1728810639579,-700.0,0.00029,2]
[340192687,1728810639589,-163.75,0.00029242,2]
[340192688,1728810639598,-7098.51358546,0.00029279,2]
[340192689,1728810639608,-756.76058746,0.00029293,2]
[340192690,1728810639619,-420.0,0.00029364,2]
[340192691,1728810639630,-6547.76,0.00029557,3]
[340192692,1728810639639,-3273.88,0.00029557,3]
[340192693,1728810639650,-1636.94,0.00029557,3]
[340192694,1728810639661,-818.48,0.00029557,3]
[340192695,1728810639671,-1000.0,0.0002971,7]
[340192696,1728810639682,-500.0,0.00029757,5]
[340192697,1728810639691,-500.0,0.00029757,5]
[340192698,1728810639703,-500.0,0.00029757,5]
[340192699,1728810639713,-500.0,0.00029757,5]
[340192700,1728810639725,-500.0,0.00029757,5]
[340192701,1728810639735,-541.23806229,0.00029757,5]
[340192702,1728810639747,-608.73119954,0.00029757,5]
[340192703,1728810639757,-500.0,0.00029757,5]
[340192704,1728810639768,-302.48028884,0.00029757,5]
[340192705,1728810639779,-500.0,0.00029757,5]
[340192706,1728810639790,-500.0,0.00029757,5]
[340192707,1728810639801,-500.0,0.00029757,5]
[340192708,1728810639811,-1000.0,0.00029873,2]
[340192709,1728810639822,-7197.16191268,0.00029878,2]
[340192710,1728810639831,-420.0,0.00029882,2]
[340192711,1728810639841,-500.0,0.00029882,5]
[340192712,1728810639851,-500.0,0.00029882,5]
[340192713,1728810639861,-500.0,0.00029882,5]
[340192714,1728810639870,-756.76058746,0.00029892,2]
[340192715,1728810639880,-500.0,0.00029973,5]
[340192716,1728810639889,-500.0,0.00029973,5]
[340192717,1728810639899,-500.0,0.00029973,5]
[340192718,1728810639908,-68933.6749618,0.0002998,4]
[340192719,1728810639918,-22827.5517161,0.0002998,4]
[340192720,1728810639927,-11018.2134235,0.0003,2]
[340192721,1728810639937,-229.0,0.0003,2]
[340192722,1728810639948,-150.112233,0.000301,6]
[340192723,1728810639959,-495.0184306,0.00030142,5]
[340192724,1728810639970,-1000.0,0.00030142,5]
[340192725,1728810639980,-630.6497531,0.00030142,5]
[340192726,1728810639991,-393.84386085,0.00030142,5]
[340192727,1728810640001,-1500.0,0.00030152,5]
[340192728,1728810640011,-7197.16191268,0.00030307,2]
[340192729,1728810640021,-34466.8374809,0.00030342,4]
[340192730,1728810640030,-11413.7758581,0.00030342,4]
[340192731,1728810640040,-151.0,0.00030352,7]
[340192732,1728810640049,-151.0,0.00030352,7]
[340192733,1728810640059,-151.0,0.00030352,7]
[340192734,1728810640069,-151.0,0.00030352,7]
[340192735,1728810640078,-300.217,0.0003046,26]
[340192736,1728810640088,-756.76058746,0.0003049,2]
[340192737,1728810640097,-5000.0,0.000305,10]
[340192738,1728810640107,-150.112233,0.000305,6]
[340192739,1728810640116,-3934.89550855,0.000305,2]
[340192740,1728810640126,-1000.0,0.0003054,5]
[340192741,1728810640135,-500.0,0.00030573,5]
[340192742,1728810640147,-150.0,0.00030573,5]
[340192743,1728810640156,-151.0,0.0003058,7]
[340192744,1728810640165,-153.82783,0.0003058,7]
[340192747,1728810640176,-151.0,0.0003058,7]
[340192748,1728810640189,-60380.23981835,0.0003058,4]
[340192749,1728810640266,-1863.46119827,0.0003058,4]
[340192751,1728810640347,-113.71868661,0.0003058,4]
[340192754,1728810640763,-1664.7293888,0.0003058,4]
[340192755,1728810640859,-4911.52586977,0.0003058,4]
[340192756,1728810640869,-22827.5517161,0.0003058,4]
[340192757,1728810640880,-47720.94447515,0.0003058,15]
[340192758,1728810640890,-25708.73184566,0.0003058,15]
[340192759,1728810640901,-22827.5517161,0.0003058,4]
[340192760,1728810640910,-7197.16191268,0.00030589,2]
[340192761,1728810640920,-160.0,0.00030589,10]
[340192762,1728810640931,-163.36209311,0.00030589,10]
[340192763,1728810640941,-151.0,0.0003059,7]
[340192764,1728810640950,-151.0,0.0003059,7]
[340192765,1728810640961,-151.0,0.0003059,7]
[340192766,1728810640971,-151.0,0.0003059,2]
[340192767,1728810641051,-151.0,0.0003059,7]
[340192768,1728810641061,-151.0,0.0003059,7]
[340192769,1728810641071,-151.0,0.0003059,7]
[340192770,1728810641082,-151.0,0.0003059,7]
[340192771,1728810641092,-299.72682,0.0003059,7]
[340192772,1728810641103,-299.72682,0.0003059,7]
[340192773,1728810641114,-166.997533,0.0003059,7]
[340192774,1728810641123,-368.896382,0.0003059,7]
[340192775,1728810641132,-166.997533,0.0003059,7]
[340192776,1728810641142,-368.896382,0.0003059,7]
[340192777,1728810641153,-151.0,0.0003059,7]
[340192778,1728810641163,-151.0,0.0003059,7]
[340192779,1728810641174,-151.0,0.0003059,7]
[340192780,1728810641186,-151.0,0.0003059,7]
[340192781,1728810641197,-151.0,0.0003059,7]
[340192782,1728810641206,-151.0,0.0003059,7]
[340192783,1728810641216,-173.907544,0.0003059,7]
[340192784,1728810641226,-173.907544,0.0003059,7]
[340192785,1728810641235,-32.61073696,0.0003059,7]
[340192786,1728810641276,-141.29680704,0.0003059,7]
[340192787,1728810641286,-173.907544,0.0003059,7]
[340192788,1728810641297,-151.0,0.0003059,7]
[340192789,1728810641307,-151.0,0.0003059,7]
[340192790,1728810641318,-214.488169,0.0003059,7]
[340192791,1728810641329,-214.488169,0.0003059,7]
[340192792,1728810641338,-214.488169,0.0003059,7]
[340192793,1728810641347,-214.488169,0.0003059,7]
[340192794,1728810641357,-151.0,0.0003059,7]
[340192795,1728810641367,-151.0,0.0003059,7]
[340192796,1728810641378,-173.899463,0.0003059,2]
[340192797,1728810641389,-173.899463,0.0003059,2]
[340192798,1728810641400,-173.899463,0.0003059,2]
[340192799,1728810641410,-173.899463,0.0003059,2]
[340192800,1728810641419,-156.710519,0.0003059,7]
[340192801,1728810641430,-199.307394,0.0003059,7]
[340192802,1728810641440,-151.0,0.0003059,7]
[340192803,1728810641449,-151.0,0.0003059,7]
[340192804,1728810641459,-617.942353,0.0003059,7]
[340192805,1728810641468,-26.06265678,0.0003059,7]
[340192834,1728810643848,-591.87969622,0.0003059,7]
[340192836,1728810643857,-151.0,0.0003059,7]
[340192837,1728810643867,-151.0,0.0003059,7]
[340192838,1728810643876,-26.74777916,0.0003059,7]
[340192841,1728810646580,-305.29805837,0.0003059,7]
[340192843,1728810713036,1605.909,0.00024,2]
[340192857,1728811532983,-465.3921747,0.00024947,2]
[340192858,1728811533007,-1070.84183,0.00025595,2]
[340192859,1728811533031,-3000.0,0.00025738,2]
[340192860,1728811533056,-163.339478,0.00026366,2]
[340192861,1728811533082,-568.45743712,0.00026701,2]
[340192862,1728811533107,-6211.19938733,0.00026773,2]
[340192863,1728811533132,-166.666666,0.00026801,2]
[340192864,1728811533158,-300.0,0.00026865,2]
[340192865,1728811533183,-300.0,0.00026865,2]
[340192866,1728811533207,-3963.87184011,0.00026865,2]
[340192867,1728811533232,-170.61776197,0.00026866,2]
[340192868,1728811533257,-24900.0,0.00026866,2]
[340192869,1728811533281,-500.0,0.00026873,2]
[340192870,1728811533305,-500.0,0.00026873,2]
[340192871,1728811533330,-500.0,0.00026873,2]
[340192872,1728811533354,-502.72387443,0.00026873,2]
[340192873,1728811533379,-501.3774042,0.00026873,2]
[340192874,1728811533404,-500.0,0.00026873,2]
[340192875,1728811533428,-393.84386085,0.00026873,2]
[340192876,1728811533452,-500.0,0.00026873,2]
[340192877,1728811533477,-168.1659351,0.00026873,2]
[340192878,1728811533501,-503.14975823,0.00026873,2]
[340192879,1728811533525,-500.0,0.00026873,2]
[340192880,1728811533549,-500.0,0.00026873,2]
[340192881,1728811533573,-500.40597054,0.00026873,2]
[340192882,1728811533598,-500.0,0.0002688,2]
[340192883,1728811533622,-500.0,0.0002688,2]
[340192884,1728811533647,-500.0,0.0002688,2]
[340192885,1728811533673,-500.0,0.0002688,2]
[340192886,1728811533700,-500.0,0.0002688,2]
[340192887,1728811533726,-500.0,0.0002688,2]
[340192888,1728811533752,-500.0,0.0002688,2]
[340192889,1728811533777,-500.0,0.0002688,2]
[340192890,1728811533805,-500.0,0.0002688,2]
[340192891,1728811533916,-500.0,0.0002688,2]
[340192892,1728811533944,-500.0,0.0002688,2]
[340192893,1728811533971,-300.0,0.0002688,2]
[340192894,1728811533997,-500.0,0.0002688,2]
[340192895,1728811534024,-500.0,0.0002688,2]
[340192896,1728811534050,-437.38578343,0.0002688,2]
[340192897,1728811534077,-234.91111392,0.0002688,2]
[340192898,1728811534104,-500.0,0.0002688,2]
[340192899,1728811534128,-500.0,0.0002688,2]
[340192900,1728811534152,-500.0,0.0002688,2]
[340192901,1728811534177,-4642.2083908,0.00026882,2]
[340192902,1728811534202,-151.0,0.0002717,2]
[340192903,1728811534228,-250.0,0.00027322,2]
[340192904,1728811534255,-250.0,0.00027397,2]
[340192905,1728811534280,-367.115159,0.00027397,2]
[340192906,1728811534306,-250.0,0.00027471,2]
[340192907,1728811534331,-500.0,0.00027475,5]
[340192908,1728811534357,-166.666666,0.00027532,2]
[340192909,1728811534382,-250.0,0.00027546,2]
[340192910,1728811534407,-250.0,0.00027621,2]
[340192911,1728811534433,-250.0,0.00027696,2]
[340192912,1728811534459,-250.0,0.00027771,2]
[340192913,1728811534485,-250.0,0.00027846,2]
[340192914,1728811534510,-250.0,0.00027921,2]
[340192915,1728811534536,-250.0,0.00027996,2]
[340192916,1728811534563,-250.0,0.00028071,2]
[340192917,1728811534588,-250.0,0.00028146,2]
[340192918,1728811534612,-501.08183231,0.00028173,5]
[340192919,1728811534636,-500.0,0.00028173,5]
[340192920,1728811534660,-578.14660377,0.00028173,5]
[340192921,1728811534684,-252.5820643,0.00028173,5]
[340192922,1728811534709,-500.0,0.00028173,5]
[340192923,1728811534735,-250.0,0.00028221,2]
[340192924,1728811534763,-505.05495484,0.00028242,5]
[340192925,1728811534787,-1000.0,0.00028242,5]
[340192926,1728811534812,-500.0,0.00028242,5]
[340192927,1728811534837,-166.666666,0.00028262,2]
[340192928,1728811534861,-250.0,0.00028296,2]
[340192929,1728811534886,-250.0,0.00028371,2]
[340192930,1728811534911,-250.0,0.00028446,2]
[340192931,1728811534937,-250.0,0.00028521,2]
[340192932,1728811534963,-250.0,0.00028595,2]
[340192933,1728811534988,-250.0,0.0002867,2]
[340192934,1728811535013,-7197.16191268,0.00028738,2]
[340192935,1728811535037,-250.0,0.00028745,2]
[340192936,1728811535061,-503.47512839,0.000288,5]
[340192937,1728811535085,-1000.0,0.00028845,5]
[340192938,1728811535109,-166.666666,0.00028993,2]
[340192939,1728811535134,-151.0,0.00029,7]
[340192940,1728811535158,-500.0,0.00029,2]
[340192941,1728811535183,-500.0,0.00029,2]
[340192942,1728811535207,-500.0,0.00029,2]
[340192943,1728811535232,-500.0,0.00029,2]
[340192944,1728811535257,-500.0,0.00029,2]
[340192945,1728811535281,-500.0,0.00029,2]
[340192946,1728811535305,-500.0,0.00029,2]
[340192947,1728811535329,-500.0,0.00029,2]
[340192948,1728811535352,-500.0,0.00029,2]
[340192949,1728811535376,-7197.16191268,0.00029025,2]
[340192950,1728811535487,-420.0,0.00029049,2]
[340192951,1728811535524,-1854.17,0.00029302,3]
[340192952,1728811535555,-1274.13,0.00029302,10]
[340192953,1728811535582,-927.09,0.00029302,3]
[340192954,1728811535609,-7197.16191268,0.00029312,2]
[340192955,1728811535635,-1528.96,0.0002939,10]
[340192956,1728811535662,-7197.16191268,0.000294,2]
[340192957,1728811535687,-163.67190002,0.00029404,2]
[340192958,1728811535717,-304.05681825,0.00029404,2]
[340192959,1728811535743,-426.44555796,0.00029404,2]
[340192960,1728811535767,-190.39338118,0.00029404,2]
[340192961,1728811535796,-39377.9128,0.00029405,4]
[340192962,1728811535822,-96407.4168263,0.00029405,4]
[340192963,1728811535846,-150.0,0.00029436,2]
[340192964,1728811535872,-500.0,0.00029473,5]
[340192965,1728811535896,-500.0,0.00029473,5]
[340192966,1728811535920,-500.0,0.00029473,5]
[340192967,1728811535945,-500.0,0.00029473,5]
[340192968,1728811535971,-500.0,0.00029473,5]
[340192969,1728811535995,-500.0,0.00029473,5]
[340192970,1728811536020,-500.0,0.00029473,5]
[340192971,1728811536044,-500.0,0.00029473,5]
[340192972,1728811536069,-500.0,0.00029473,5]
[340192973,1728811536094,-500.7932319,0.00029542,5]
[340192974,1728811536117,-632.8819241,0.00029542,5]
[340192975,1728811536142,-420.0,0.00029552,2]
[340192976,1728811536167,-500.0,0.0002956,5]
[340192977,1728811536190,-500.0,0.0002956,5]
[340192978,1728811536218,-166.666666,0.00029724,2]
[340192979,1728811536242,-150.0,0.00029741,2]
[340192980,1728811536266,-7197.16191268,0.00029777,2]
[340192981,1728811536290,-681.08452873,0.0002989,2]
[340192982,1728811536314,-7197.16191268,0.000299,2]
[340192983,1728811536339,-1000.0,0.00029979,7]
[340192984,1728811536364,-39377.9128,0.00029979,4]
[340192985,1728811536388,-71302.42768214,0.00029979,4]
[340192986,1728811627157,-500.0,0.00026873,2]
[340192987,1728811627182,-166.666666,0.00027047,2]
[340192988,1728811627206,-250.0,0.00027344,2]
[340192989,1728811627231,-250.0,0.00027419,2]
[340192990,1728811627254,-250.0,0.00027494,2]
[340192991,1728811627277,-250.0,0.00027569,2]
[340192992,1728811627302,-250.0,0.00027644,2]
[340192993,1728811627325,-250.0,0.00027719,2]
[340192994,1728811627348,-250.0,0.00027794,2]
[340192995,1728811627371,-250.0,0.00027869,2]
[340192996,1728811627394,-250.0,0.00027944,2]
[340192997,1728811627416,-250.0,0.00028019,2]
[340192998,1728811627439,-250.0,0.00028094,2]
[340192999,1728811627463,-250.0,0.00028169,2]
[340193000,1728811627485,-1000.0,0.00028242,5]
[340193001,1728811627511,-250.0,0.00028244,2]
[340193002,1728811627535,-250.0,0.00028319,2]
[340193003,1728811627557,-250.0,0.00028394,2]
[340193004,1728811627579,-250.0,0.00028469,2]
[340193005,1728811627600,-250.0,0.00028544,2]
[340193006,1728811627622,-250.0,0.00028619,2]
[340193007,1728811627643,-300.0,0.00028619,2]
[340193008,1728811627666,-300.0,0.00028619,2]
[340193009,1728811627689,-250.0,0.00028693,2]
[340193010,1728811627712,-250.0,0.00028768,2]
[340193011,1728811627736,-1000.0,0.00029353,2]
[340193012,1728811627757,-4431.67805049,0.00029749,2]
[340193013,1728811627781,-472.33651071,0.00029979,4]
[340193014,1728811639146,-407.48616094,0.00029,2]
[340193015,1728811641115,-92.51383906,0.00029,2]
[340193016,1728811641138,-201.88673261,0.00029,2]
[340193020,1728811738811,1000.0,0.00024,2]
[340193021,1728811751240,-300.0,0.00024999,2]
[340193022,1728811751263,-300.0,0.00024999,2]
[340193023,1728811751285,-12867.764105,0.00025,2]
[340193024,1728811751306,-6075.36249488,0.00025,2]
[340193025,1728811752107,-24.0910027,0.00025,2]
[340193026,1728811761122,-420.0,0.00027082,2]
[340193027,1728811761145,-420.0,0.00027499,2]
[340193028,1728811761165,-5208.69306674,0.000275,2]
[340193029,1728811763605,3000.0,0.00028517,2]
[340193030,1728811768588,1000.0,0.00024,2]
[340193041,1728811801426,-1499.99999901,0.00028887,2]
[340193042,1728811801452,-300.0,0.00028999,2]
[340193043,1728811801478,-298.11326739,0.00029,2]
[340193044,1728811801503,-500.0,0.00029,2]
[340193045,1728811801528,-990.61119686,0.00029,2]
[340193046,1728811801553,-500.0,0.00029,2]
[340193047,1728811801578,-500.0,0.00029,2]
[340193048,1728811801601,-500.0,0.00029,2]
[340193049,1728811801627,-500.0,0.00029,2]
[340193050,1728811801652,-500.0,0.00029,2]
[340193051,1728811801677,-500.0,0.00029,2]
[340193052,1728811801701,-700.0,0.00029,2]
[340193053,1728811801728,-500.0,0.00029,2]
[340193054,1728811801756,-500.0,0.00029,2]
[340193055,1728811801782,-500.0,0.00029,2]
[340193056,1728811801806,-667.56163429,0.00029,2]
[340193057,1728811801831,-587.0,0.00029339,2]
[340193058,1728811801857,-5434.79946387,0.000299,2]
[340193059,1728811801883,-500.0,0.00029973,5]
[340193060,1728811801907,-500.0,0.00029973,2]
[340193061,1728811801932,-5000.0,0.0003,15]
[340193062,1728811801957,-875.72904696,0.0003,15]
[340193063,1728811801980,-1500.0,0.0003,2]
[340193064,1728811802003,-1015.49106109,0.0003,7]
[340193065,1728811802027,-166.49162359,0.0003,2]
[340193066,1728811802052,-215.98134358,0.0003,2]
[340193067,1728811802078,-229.0,0.0003,2]
[340193068,1728811802102,-200.0,0.0003,120]
[340193069,1728811803380,300.0,0.00028999,2]
[340193070,1728811805210,150.0,0.0003,2]
[340193071,1728811811558,24900.0,0.00028884,2]
[340193072,1728811814171,155.0,0.0003,2]
[340193073,1728811818917,155.0,0.0003,2]
[340193074,1728811823748,155.0,0.0003,2]
[340193075,1728811826637,1000.0,0.0003,2]
[340193076,1728811828791,155.0,0.0003,2]
[340193077,1728811831716,535.420915,0.00028919,2]
[340193109,1728811832714,-32.71117463,0.00030136,120]
[340193110,1728811833508,155.0,0.0003,2]
[340193111,1728811838068,155.0,0.0003,2]
[340193139,1728811840794,-967.28882537,0.00030136,120]
[340193140,1728811840805,-152.88257169,0.00030159,2]
[340193141,1728811840815,-1000.0,0.00030182,2]
[340193142,1728811840824,-696.21974046,0.000302,2]
[340193143,1728811840834,-1319.08509737,0.00030246,5]
[340193144,1728811840845,-1787.25,0.00030262,3]
[340193145,1728811840856,-1787.25,0.00030262,3]
[340193146,1728811840866,-696.21974046,0.00030268,2]
[340193147,1728811840875,-212.83977277,0.00030271,2]
[340193148,1728811840884,-298.51189058,0.00030271,2]
[340193149,1728811840893,-516.6496138,0.00030271,2]
[340193150,1728811840903,-500.0,0.00030271,2]
[340193151,1728811840913,-500.0,0.00030271,2]
[340193152,1728811840923,-500.0,0.00030271,2]
[340193153,1728811840932,-481.20436024,0.00030271,2]
[340193154,1728811840942,-270.8206426,0.00030271,2]
[340193155,1728811840952,-500.0,0.00030271,2]
[340193156,1728811840963,-213.47505474,0.00030271,2]
[340193157,1728811840975,-500.0,0.00030271,2]
[340193158,1728811840986,-500.0,0.00030271,2]
[340193159,1728811840996,-500.0,0.00030271,2]
[340193160,1728811841006,-500.0,0.00030271,2]
[340193161,1728811841018,-500.0,0.00030271,2]
[340193162,1728811841028,-500.0,0.00030271,2]
[340193163,1728811841039,-500.0,0.00030271,2]
[340193164,1728811841053,-500.0,0.00030271,2]
[340193165,1728811841063,-500.0,0.00030271,2]
[340193166,1728811841074,-500.0,0.00030271,2]
[340193167,1728811841089,-500.0,0.00030271,2]
[340193168,1728811841099,-500.0,0.00030271,2]
[340193169,1728811841109,-500.0,0.00030271,2]
[340193170,1728811841119,-70880.2430399,0.00030272,4]
[340193171,1728811841131,-22745.6266986,0.00030272,4]
[340193172,1728811841142,-189.30098988,0.00030272,7]
[340193173,1728811841155,-500.0,0.00030273,2]
[340193174,1728811841168,-5000.0,0.00030281,2]
[340193175,1728811841179,-5000.0,0.00030281,2]
[340193176,1728811841189,-5000.0,0.00030281,2]
[340193177,1728811841201,-5000.0,0.00030281,2]
[340193178,1728811841214,-5000.0,0.00030281,2]
[340193179,1728811841225,-5000.0,0.00030281,2]
[340193180,1728811841235,-5000.0,0.00030281,2]
[340193181,1728811841245,-5000.0,0.00030281,2]
[340193182,1728811841257,-5000.0,0.00030281,2]
[340193183,1728811841267,-5000.0,0.00030281,2]
[340193184,1728811841277,-5000.0,0.00030281,2]
[340193185,1728811841288,-151.0,0.00030282,7]
[340193186,1728811841299,-151.0,0.00030282,7]
[340193187,1728811841310,-175.278364,0.00030282,7]
[340193188,1728811841321,-175.278364,0.00030282,7]
[340193189,1728811841331,-175.278364,0.00030282,7]
[340193190,1728811841343,-175.278364,0.00030282,7]
[340193191,1728811841353,-151.0,0.00030282,7]
[340193192,1728811841363,-151.0,0.00030282,7]
[340193193,1728811841373,-151.0,0.00030282,7]
[340193194,1728811841384,-151.0,0.00030282,7]
[340193195,1728811841394,-151.0,0.00030282,7]
[340193196,1728811841404,-151.0,0.00030282,7]
[340193197,1728811841415,-204.159123,0.00030282,7]
[340193198,1728811841427,-204.159123,0.00030282,7]
[340193199,1728811841439,-204.159123,0.00030282,7]
[340193200,1728811841450,-204.159123,0.00030282,7]
[340193201,1728811841460,-539.545826,0.00030282,7]
[340193202,1728811841469,-539.545826,0.00030282,7]
[340193203,1728811841478,-3000.0,0.00030282,90]
[340193204,1728811841487,-3000.0,0.00030282,90]
[340193205,1728811841497,-3000.0,0.00030282,90]
[340193206,1728811841507,-539.545826,0.00030282,7]
[340193207,1728811841516,-3000.0,0.00030282,90]
[340193208,1728811841526,-3000.0,0.00030282,90]
[340193209,1728811841535,-539.545826,0.00030282,7]
[340193210,1728811841544,-3000.0,0.00030282,90]
[340193211,1728811841554,-3000.0,0.00030282,90]
[340193212,1728811841627,-3000.0,0.00030282,90]
[340193213,1728811841639,-1176.399964,0.00030282,90]
[340193214,1728811841649,-192.25124,0.000303,5]
[340193215,1728811841659,-150.112236,0.000303,7]
[340193216,1728811841668,-696.21974046,0.00030335,2]
[340193217,1728811841678,-5353.5060045,0.0003036,2]
[340193218,1728811841688,-150.112233,0.000304,9]
[340193219,1728811841699,-696.21974046,0.00030403,2]
[340193220,1728811841708,-1000.0,0.0003041,120]
[340193221,1728811841717,-696.21974046,0.0003047,2]
[340193222,1728811841728,-3934.89550855,0.0003047,2]
[340193223,1728811841738,-150.112233,0.000305,6]
[340193224,1728811841747,-3000.0,0.000305,4]
[340193225,1728811841756,-150.112233,0.000305,9]
[340193226,1728811841766,-35440.12152,0.000305,4]
[340193227,1728811841776,-11372.8133493,0.000305,4]
[340193228,1728811841787,-70880.2430399,0.00030509,4]
[340193229,1728811841797,-22745.6266986,0.00030509,4]
[340193230,1728811841807,-3000.0,0.0003051,4]
[340193231,1728811841816,-151.0,0.00030518,7]
[340193232,1728811841826,-175.278364,0.00030518,7]
[340193233,1728811841837,-175.278364,0.00030518,7]
[340193234,1728811841851,-151.0,0.00030518,7]
[340193235,1728811841863,-151.0,0.00030518,7]
[340193236,1728811841875,-151.0,0.00030518,7]
[340193237,1728811841886,-204.159123,0.00030518,7]
[340193238,1728811841897,-204.159123,0.00030518,7]
[340193239,1728811841909,-539.545826,0.00030518,7]
[340193240,1728811841919,-539.545826,0.00030518,7]
[340193241,1728811841929,-5000.0,0.00030518,2]
[340193242,1728811841942,-5000.0,0.00030518,2]